[Event "*** SCC Grand Prix: Titled Tuesday Blitz"]
[Site "Chess.com"]
[Date "2020.06.09"]
[Round "6"]
[White "Fandorine"]
[Black "Colchonero64"]
[Result "1/2-1/2"]
[WhiteElo "2903"]
[BlackElo "2992"]
[TimeControl "180+1"]
[EndTime "10:08:00 PDT"]
[Termination "Game drawn by agreement"]

1. e4 {[%clk 0:03:00.9]} 1... e6 {[%clk 0:02:58.9]} 2. d4 {[%clk 0:03:01]} 2...
d5 {[%clk 0:02:59.4]} 3. Nc3 {[%clk 0:03:01.6]} 3... Nf6 {[%clk 0:02:59.6]} 4.
Bg5 {[%clk 0:03:01.2]} 4... dxe4 {[%clk 0:02:59.8]} 5. Nxe4 {[%clk 0:03:01.3]}
5... Be7 {[%clk 0:03:00.2]} 6. Bxf6 {[%clk 0:03:00.3]} 6... gxf6 {[%clk
0:03:00.6]} 7. Nf3 {[%clk 0:02:59.5]} 7... f5 {[%clk 0:02:58]} 8. Nc3 {[%clk
0:02:59.4]} 8... a6 {[%clk 0:02:58.2]} 9. a4 {[%clk 0:02:59.3]} 9... Qd6 {[%clk
0:02:47]} 10. Qd2 {[%clk 0:02:49.9]} 10... Nd7 {[%clk 0:02:46]} 11. O-O-O {[%clk
0:02:46.2]} 11... b5 {[%clk 0:02:45.1]} 12. Kb1 {[%clk 0:02:41.7]} 12... b4
{[%clk 0:02:42.5]} 13. Na2 {[%clk 0:02:40.1]} 13... Bb7 {[%clk 0:02:42.3]} 14.
Nc1 {[%clk 0:02:17.5]} 14... Nf6 {[%clk 0:02:39.2]} 15. Nb3 {[%clk 0:02:15.8]}
15... Bd5 {[%clk 0:02:33.3]} 16. Ne5 {[%clk 0:02:10.4]} 16... Rb8 {[%clk
0:02:22.5]} 17. f3 {[%clk 0:02:08.6]} 17... Nd7 {[%clk 0:02:19.6]} 18. Nc4
{[%clk 0:02:05.2]} 18... Bxc4 {[%clk 0:02:11.4]} 19. Bxc4 {[%clk 0:02:06.1]}
19... Nb6 {[%clk 0:02:11.7]} 20. Qe2 {[%clk 0:01:39.6]} 20... Nxa4 {[%clk
0:02:10.7]} 21. d5 {[%clk 0:01:33]} 21... e5 {[%clk 0:02:03.7]} 22. g4 {[%clk
0:01:30.6]} 22... O-O {[%clk 0:01:52.4]} 23. Qd3 {[%clk 0:01:02.4]} 23... f4
{[%clk 0:01:00.9]} 24. Qf5 {[%clk 0:00:54.3]} 24... Qg6 {[%clk 0:00:51]} 25.
Rde1 {[%clk 0:00:47.7]} 25... Qxf5 {[%clk 0:00:49.2]} 26. gxf5 {[%clk
0:00:48.6]} 26... Bf6 {[%clk 0:00:49.2]} 27. Nd2 {[%clk 0:00:48.8]} 27... Nc5
{[%clk 0:00:37.1]} 28. Nb3 {[%clk 0:00:27.4]} 28... Nxb3 {[%clk 0:00:34.7]} 29.
cxb3 {[%clk 0:00:27.5]} 29... a5 {[%clk 0:00:34]} 30. Kc2 {[%clk 0:00:27.6]}
30... Kh8 {[%clk 0:00:25.3]} 31. Rhg1 {[%clk 0:00:27.8]} 31... Rg8 {[%clk
0:00:23.6]} 32. Kd3 {[%clk 0:00:28.3]} 32... Ra8 {[%clk 0:00:15.7]} 33. Bb5
{[%clk 0:00:20.3]} 33... Rad8 {[%clk 0:00:14.4]} 34. Bc6 {[%clk 0:00:16.7]}
34... Rxg1 {[%clk 0:00:12.6]} 35. Rxg1 {[%clk 0:00:16.8]} 35... Rg8 {[%clk
0:00:12.7]} 36. Rxg8+ {[%clk 0:00:16.8]} 36... Kxg8 {[%clk 0:00:12.6]} 37. Ke4
{[%clk 0:00:15.3]} 37... Kf8 {[%clk 0:00:11.8]} 38. Bb5 {[%clk 0:00:15]} 38...
Ke7 {[%clk 0:00:11.8]} 39. Bc6 {[%clk 0:00:14.9]} 39... Kd6 {[%clk 0:00:11.8]}
40. Be8 {[%clk 0:00:14.1]} 40... Ke7 {[%clk 0:00:10.8]} 41. Bc6 {[%clk 0:00:14]}
41... h6 {[%clk 0:00:10.3]} 42. Bb5 {[%clk 0:00:13.1]} 42... Kd6 {[%clk
0:00:09.4]} 43. Be8 {[%clk 0:00:13.1]} 43... Ke7 {[%clk 0:00:09.3]} 44. Bc6
{[%clk 0:00:13.6]} 44... Bh4 {[%clk 0:00:09.2]} 45. Bb5 {[%clk 0:00:05.8]} 45...
f6 {[%clk 0:00:08.7]} 46. Bc6 {[%clk 0:00:04.3]} 46... Bf2 {[%clk 0:00:07.8]}
47. Bb5 {[%clk 0:00:04.1]} 47... Bd4 {[%clk 0:00:07.4]} 48. Bc6 {[%clk
0:00:04.5]} 48... Bxb2 {[%clk 0:00:07.3]} 49. Ba4 {[%clk 0:00:05.1]} 49... Kd6
{[%clk 0:00:07.3]} 50. Bc6 {[%clk 0:00:05.6]} 50... Kc5 {[%clk 0:00:07.2]} 51.
Ba4 {[%clk 0:00:06]} 51... Bc3 {[%clk 0:00:06.4]} 52. Be8 {[%clk 0:00:06]} 52...
Bd4 {[%clk 0:00:06.2]} 53. Ba4 {[%clk 0:00:06.4]} 53... Bg1 {[%clk 0:00:06.1]}
54. h3 {[%clk 0:00:04.6]} 54... Bd4 {[%clk 0:00:05.6]} 55. Be8 {[%clk
0:00:04.5]} 55... Kd6 {[%clk 0:00:05.5]} 56. h4 {[%clk 0:00:04.8]} 56... Bf2
{[%clk 0:00:05.1]} 57. h5 {[%clk 0:00:05]} 57... Bd4 {[%clk 0:00:05.1]} 58. Ba4
{[%clk 0:00:05.4]} 58... Kc5 {[%clk 0:00:05.1]} 59. Bc6 {[%clk 0:00:05.7]} 59...
Kd6 {[%clk 0:00:04.7]} 1/2-1/2

[Event "*** SCC Grand Prix: Titled Tuesday Blitz"]
[Site "Chess.com"]
[Date "2020.06.09"]
[Round "6"]
[White "chessplayer9919"]
[Black "GMaka"]
[Result "1-0"]
[WhiteElo "2523"]
[BlackElo "2348"]
[TimeControl "180+1"]
[EndTime "10:08:03 PDT"]
[Termination "chessplayer9919 won on time"]

1. d4 {[%clk 0:03:00.9]} 1... Nf6 {[%clk 0:02:59.9]} 2. c4 {[%clk 0:03:00.4]}
2... g6 {[%clk 0:03:00.1]} 3. Nc3 {[%clk 0:02:59.7]} 3... d5 {[%clk 0:03:00.5]}
4. cxd5 {[%clk 0:03:00.6]} 4... Nxd5 {[%clk 0:03:00.9]} 5. e4 {[%clk 0:03:01.2]}
5... Nxc3 {[%clk 0:03:00]} 6. bxc3 {[%clk 0:03:02.1]} 6... Bg7 {[%clk
0:03:00.7]} 7. Bc4 {[%clk 0:03:02.6]} 7... O-O {[%clk 0:03:00.2]} 8. Ne2 {[%clk
0:03:02.6]} 8... c5 {[%clk 0:03:00.6]} 9. O-O {[%clk 0:03:03]} 9... Nc6 {[%clk
0:02:57.8]} 10. Be3 {[%clk 0:03:01.6]} 10... cxd4 {[%clk 0:02:56.1]} 11. cxd4
{[%clk 0:03:02.5]} 11... b6 {[%clk 0:02:56]} 12. Bd5 {[%clk 0:02:58.2]} 12...
Bb7 {[%clk 0:02:55.8]} 13. Qa4 {[%clk 0:02:58.6]} 13... Na5 {[%clk 0:02:39.9]}
14. Bxb7 {[%clk 0:02:58.2]} 14... Nxb7 {[%clk 0:02:40.8]} 15. Rac1 {[%clk
0:02:57.1]} 15... Nd6 {[%clk 0:02:27.6]} 16. f3 {[%clk 0:02:52]} 16... b5 {[%clk
0:02:25.1]} 17. Qb3 {[%clk 0:02:41.9]} 17... Nc4 {[%clk 0:02:23.2]} 18. Rfd1
{[%clk 0:02:34.1]} 18... Nxe3 {[%clk 0:01:57.6]} 19. Qxe3 {[%clk 0:02:32.6]}
19... Qa5 {[%clk 0:01:57.1]} 20. Qb3 {[%clk 0:02:32.5]} 20... Rfc8 {[%clk
0:01:53.9]} 21. h3 {[%clk 0:02:11.7]} 21... Qb6 {[%clk 0:01:51.6]} 22. Kh2
{[%clk 0:01:56.1]} 22... a5 {[%clk 0:01:46.1]} 23. e5 {[%clk 0:01:45.3]} 23...
b4 {[%clk 0:01:37.1]} 24. f4 {[%clk 0:01:19.4]} 24... a4 {[%clk 0:01:36.4]} 25.
Rxc8+ {[%clk 0:01:18.9]} 25... Rxc8 {[%clk 0:01:37.2]} 26. Qxa4 {[%clk
0:01:19.5]} 26... e6 {[%clk 0:01:29.4]} 27. Qb3 {[%clk 0:01:17.4]} 27... Qb5
{[%clk 0:01:26.3]} 28. Rc1 {[%clk 0:00:57.7]} 28... Ra8 {[%clk 0:00:57.5]} 29.
Rc4 {[%clk 0:00:44.9]} 29... Bf8 {[%clk 0:00:43]} 30. Ng3 {[%clk 0:00:28.4]}
30... Qd5 {[%clk 0:00:27.8]} 31. Qc2 {[%clk 0:00:22.2]} 31... Be7 {[%clk
0:00:10.7]} 32. Ne4 {[%clk 0:00:20.4]} 32... Kg7 {[%clk 0:00:11.2]} 33. g4
{[%clk 0:00:17.4]} 33... Ra3 {[%clk 0:00:10.8]} 34. f5 {[%clk 0:00:11.4]} 34...
gxf5 {[%clk 0:00:10.3]} 35. gxf5 {[%clk 0:00:12.3]} 35... exf5 {[%clk
0:00:10.7]} 36. Ng3 {[%clk 0:00:12.9]} 36... Rxg3 {[%clk 0:00:03.8]} 37. Kxg3
{[%clk 0:00:12.2]} 37... Bg5 {[%clk 0:00:04.2]} 38. Qxf5 {[%clk 0:00:06.6]}
38... Qxc4 {[%clk 0:00:03.2]} 39. Qxg5+ {[%clk 0:00:07.2]} 39... Kf8 {[%clk
0:00:03.7]} 40. Qd8+ {[%clk 0:00:07.3]} 40... Kg7 {[%clk 0:00:04.1]} 41. Qf6+
{[%clk 0:00:05.1]} 41... Kg8 {[%clk 0:00:04.4]} 42. Qd8+ {[%clk 0:00:04.7]}
42... Kg7 {[%clk 0:00:04.9]} 43. d5 {[%clk 0:00:05.4]} 43... Qc3+ {[%clk
0:00:04.3]} 44. Kf4 {[%clk 0:00:05.4]} 44... Qd4+ {[%clk 0:00:04.4]} 45. Kf5
{[%clk 0:00:05.8]} 45... Qd3+ {[%clk 0:00:03.9]} 46. Kf4 {[%clk 0:00:04.1]}
46... Qd4+ {[%clk 0:00:02.6]} 47. Kf3 {[%clk 0:00:04.7]} 47... Qxe5 {[%clk
0:00:02.5]} 48. d6 {[%clk 0:00:05.1]} 48... Qd5+ {[%clk 0:00:02.6]} 49. Ke3
{[%clk 0:00:05]} 49... Qxa2 {[%clk 0:00:03.5]} 50. Qg5+ {[%clk 0:00:04.2]} 50...
Kf8 {[%clk 0:00:03.9]} 51. Qe7+ {[%clk 0:00:03.7]} 51... Kg7 {[%clk 0:00:03.7]}
52. d7 {[%clk 0:00:04.3]} 52... Qb3+ {[%clk 0:00:03.6]} 53. Kf4 {[%clk
0:00:03.2]} 53... Qc4+ {[%clk 0:00:03.5]} 54. Qe4 {[%clk 0:00:02.1]} 54... Qc1+
{[%clk 0:00:01.3]} 55. Qe3 {[%clk 0:00:02.1]} 1-0

[Event "*** SCC Grand Prix: Titled Tuesday Blitz"]
[Site "Chess.com"]
[Date "2020.06.09"]
[Round "6"]
[White "MFBerna"]
[Black "SergioGarciaFuentes"]
[Result "1-0"]
[WhiteElo "2408"]
[BlackElo "2227"]
[TimeControl "180+1"]
[EndTime "10:08:06 PDT"]
[Termination "MFBerna won on time"]

1. e4 {[%clk 0:03:00.9]} 1... e5 {[%clk 0:02:58.4]} 2. Nf3 {[%clk 0:03:00.5]}
2... Nf6 {[%clk 0:02:57.9]} 3. d4 {[%clk 0:02:59.5]} 3... Nxe4 {[%clk
0:02:57.2]} 4. Bd3 {[%clk 0:02:59.1]} 4... d5 {[%clk 0:02:56.3]} 5. Nxe5 {[%clk
0:02:58.2]} 5... Bd6 {[%clk 0:02:47.3]} 6. O-O {[%clk 0:02:54.3]} 6... O-O
{[%clk 0:02:46.2]} 7. Nd2 {[%clk 0:02:54.4]} 7... Nxd2 {[%clk 0:02:36.6]} 8.
Bxd2 {[%clk 0:02:55.3]} 8... Nd7 {[%clk 0:02:25]} 9. Re1 {[%clk 0:02:43.6]} 9...
Nxe5 {[%clk 0:02:16.5]} 10. dxe5 {[%clk 0:02:44.5]} 10... Bc5 {[%clk 0:02:16.9]}
11. Qh5 {[%clk 0:02:37.9]} 11... g6 {[%clk 0:02:13.6]} 12. Qh6 {[%clk
0:02:38.2]} 12... Re8 {[%clk 0:02:08.1]} 13. Bg5 {[%clk 0:02:34.7]} 13... Be7
{[%clk 0:02:02.2]} 14. Bf6 {[%clk 0:02:27.5]} 14... Bf8 {[%clk 0:01:48]} 15.
Bxd8 {[%clk 0:01:56.2]} 15... Bxh6 {[%clk 0:01:46.4]} 16. Bxc7 {[%clk
0:01:56.6]} 16... Bd7 {[%clk 0:01:43.8]} 17. Bd6 {[%clk 0:01:36.4]} 17... Rac8
{[%clk 0:01:42.5]} 18. g3 {[%clk 0:01:30.3]} 18... Bg7 {[%clk 0:01:19.3]} 19. f4
{[%clk 0:01:28.1]} 19... h5 {[%clk 0:01:13.4]} 20. Rad1 {[%clk 0:01:20.7]} 20...
Bg4 {[%clk 0:01:01.3]} 21. Rd2 {[%clk 0:01:20.8]} 21... Bf8 {[%clk 0:00:48.4]}
22. Bxf8 {[%clk 0:01:19]} 22... Kxf8 {[%clk 0:00:49.3]} 23. c3 {[%clk 0:01:15]}
23... Ke7 {[%clk 0:00:47.7]} 24. Bb5 {[%clk 0:01:10.2]} 24... Red8 {[%clk
0:00:47.5]} 25. Kf2 {[%clk 0:01:04.2]} 25... Bf5 {[%clk 0:00:46.6]} 26. Red1
{[%clk 0:00:58.2]} 26... Rc5 {[%clk 0:00:35]} 27. Be2 {[%clk 0:00:55.1]} 27...
Be4 {[%clk 0:00:25.6]} 28. Ke3 {[%clk 0:00:55.3]} 28... Rdc8 {[%clk 0:00:24.3]}
29. Rd4 {[%clk 0:00:45.4]} 29... Ra5 {[%clk 0:00:22.6]} 30. a3 {[%clk
0:00:45.2]} 30... Ke6 {[%clk 0:00:22.1]} 31. Bf1 {[%clk 0:00:44.3]} 31... Rac5
{[%clk 0:00:20.8]} 32. Bh3+ {[%clk 0:00:42.1]} 32... Bf5 {[%clk 0:00:19.6]} 33.
Bxf5+ {[%clk 0:00:42.1]} 33... gxf5 {[%clk 0:00:18.4]} 34. Rb4 {[%clk
0:00:32.5]} 34... b6 {[%clk 0:00:16.2]} 35. Ra4 {[%clk 0:00:26.9]} 35... R8c7
{[%clk 0:00:11.5]} 36. Ra6 {[%clk 0:00:25.2]} 36... Rb5 {[%clk 0:00:11.3]} 37.
Rd2 {[%clk 0:00:24]} 37... Rb3 {[%clk 0:00:10.2]} 38. Kd3 {[%clk 0:00:18.4]}
38... d4 {[%clk 0:00:07.6]} 39. Kxd4 {[%clk 0:00:15.4]} 39... Rd7+ {[%clk
0:00:07.7]} 40. Ke3 {[%clk 0:00:15.5]} 40... Rxd2 {[%clk 0:00:08.2]} 41. Kxd2
{[%clk 0:00:15.9]} 41... Rxb2+ {[%clk 0:00:08.9]} 42. Ke3 {[%clk 0:00:16.2]}
42... Rxh2 {[%clk 0:00:09.5]} 43. Rxa7 {[%clk 0:00:15.5]} 43... Rg2 {[%clk
0:00:08.2]} 44. Kf3 {[%clk 0:00:15.6]} 44... Rc2 {[%clk 0:00:08.1]} 45. Rc7
{[%clk 0:00:14.7]} 45... Ra2 {[%clk 0:00:06.5]} 46. Rc6+ {[%clk 0:00:14.2]}
46... Kd5 {[%clk 0:00:06.9]} 47. Rxb6 {[%clk 0:00:11.2]} 47... Rxa3 {[%clk
0:00:07.4]} 48. Rf6 {[%clk 0:00:11.1]} 48... Rxc3+ {[%clk 0:00:07.1]} 49. Kg2
{[%clk 0:00:11.6]} 49... h4 {[%clk 0:00:05.8]} 50. gxh4 {[%clk 0:00:11.4]} 50...
Ke4 {[%clk 0:00:05.4]} 51. Rxf7 {[%clk 0:00:10.7]} 51... Kxf4 {[%clk 0:00:05.7]}
52. e6 {[%clk 0:00:10.4]} 52... Re3 {[%clk 0:00:05.5]} 53. e7 {[%clk 0:00:10.1]}
53... Kg4 {[%clk 0:00:05]} 54. Rh7 {[%clk 0:00:07.5]} 54... Re2+ {[%clk
0:00:02.9]} 55. Kf1 {[%clk 0:00:07.4]} 55... Re6 {[%clk 0:00:02.2]} 56. Kf2
{[%clk 0:00:04.3]} 56... f4 {[%clk 0:00:02.6]} 57. h5 {[%clk 0:00:03.8]} 57...
Kf5 {[%clk 0:00:02.8]} 58. Kf3 {[%clk 0:00:03.7]} 58... Kf6 {[%clk 0:00:02]} 59.
Rh6+ {[%clk 0:00:03.4]} 1-0

[Event "*** SCC Grand Prix: Titled Tuesday Blitz"]
[Site "Chess.com"]
[Date "2020.06.09"]
[Round "6"]
[White "Gandrade2"]
[Black "HanSchut"]
[Result "1/2-1/2"]
[WhiteElo "2013"]
[BlackElo "2184"]
[TimeControl "180+1"]
[EndTime "10:08:06 PDT"]
[Termination "Game drawn by repetition"]

1. d4 {[%clk 0:03:00.9]} 1... Nf6 {[%clk 0:02:59.2]} 2. c4 {[%clk 0:03:00]} 2...
g6 {[%clk 0:02:59.6]} 3. Nc3 {[%clk 0:03:00]} 3... d5 {[%clk 0:02:58.9]} 4. cxd5
{[%clk 0:02:59.9]} 4... Nxd5 {[%clk 0:02:59.8]} 5. Bd2 {[%clk 0:02:59.9]} 5...
Bg7 {[%clk 0:02:57.9]} 6. e4 {[%clk 0:02:59]} 6... Nb6 {[%clk 0:02:58.4]} 7. Be3
{[%clk 0:02:57.9]} 7... e5 {[%clk 0:02:50.3]} 8. dxe5 {[%clk 0:02:43.4]} 8...
Qxd1+ {[%clk 0:02:45.4]} 9. Rxd1 {[%clk 0:02:44.3]} 9... Bxe5 {[%clk 0:02:45.1]}
10. Nf3 {[%clk 0:02:44.8]} 10... Bxc3+ {[%clk 0:02:34.6]} 11. bxc3 {[%clk
0:02:45.7]} 11... O-O {[%clk 0:02:32.8]} 12. Be2 {[%clk 0:02:22.8]} 12... Be6
{[%clk 0:02:27.8]} 13. O-O {[%clk 0:01:55.3]} 13... Bxa2 {[%clk 0:02:22.7]} 14.
Ra1 {[%clk 0:01:55]} 14... Bc4 {[%clk 0:02:20.8]} 15. Rfe1 {[%clk 0:01:18]}
15... Bxe2 {[%clk 0:02:13.8]} 16. Rxe2 {[%clk 0:01:18.9]} 16... Nc6 {[%clk
0:02:09.1]} 17. Nd4 {[%clk 0:01:08.9]} 17... Ne5 {[%clk 0:02:02.3]} 18. Nb5
{[%clk 0:00:55.5]} 18... Nec4 {[%clk 0:01:46.8]} 19. Nxc7 {[%clk 0:00:41.1]}
19... Rac8 {[%clk 0:01:41.6]} 20. Nb5 {[%clk 0:00:34]} 20... a6 {[%clk
0:01:39.4]} 21. Bxb6 {[%clk 0:00:25.9]} 21... Nxb6 {[%clk 0:01:21.7]} 22. Nd6
{[%clk 0:00:26.3]} 22... Rxc3 {[%clk 0:01:03.9]} 23. Nxb7 {[%clk 0:00:24.7]}
23... Rb8 {[%clk 0:00:43.2]} 24. Na5 {[%clk 0:00:18.2]} 24... Nc4 {[%clk
0:00:43.1]} 25. Nxc4 {[%clk 0:00:17.9]} 25... Rxc4 {[%clk 0:00:43.3]} 26. g3
{[%clk 0:00:16.7]} 26... Rb6 {[%clk 0:00:42]} 27. Kg2 {[%clk 0:00:15.4]} 27...
Kg7 {[%clk 0:00:41.1]} 28. f3 {[%clk 0:00:15.8]} 28... Rbc6 {[%clk 0:00:40.1]}
29. Rea2 {[%clk 0:00:16]} 29... Rc2+ {[%clk 0:00:39.9]} 30. Kh3 {[%clk
0:00:16.4]} 30... Rxa2 {[%clk 0:00:38.8]} 31. Rxa2 {[%clk 0:00:16.6]} 31... h5
{[%clk 0:00:38.6]} 32. Kg2 {[%clk 0:00:15.1]} 32... Kf8 {[%clk 0:00:38.2]} 33.
f4 {[%clk 0:00:14.1]} 33... Ke7 {[%clk 0:00:38.2]} 34. Kf3 {[%clk 0:00:14.5]}
34... Kd7 {[%clk 0:00:38.5]} 35. Ke3 {[%clk 0:00:14.5]} 35... Kc7 {[%clk
0:00:39]} 36. Kd4 {[%clk 0:00:14.5]} 36... Kb7 {[%clk 0:00:38.9]} 37. h3 {[%clk
0:00:11.8]} 37... Rb6 {[%clk 0:00:36.1]} 38. Ra3 {[%clk 0:00:10.3]} 38... Rb5
{[%clk 0:00:35.6]} 39. g4 {[%clk 0:00:10.4]} 39... hxg4 {[%clk 0:00:35.1]} 40.
hxg4 {[%clk 0:00:11.3]} 40... Kb6 {[%clk 0:00:35.4]} 41. f5 {[%clk 0:00:11.6]}
41... gxf5 {[%clk 0:00:34]} 42. exf5 {[%clk 0:00:11.5]} 42... f6 {[%clk
0:00:34.5]} 43. Ke4 {[%clk 0:00:11.4]} 43... a5 {[%clk 0:00:30.8]} 44. Kf3
{[%clk 0:00:10.3]} 44... Rc5 {[%clk 0:00:22.2]} 45. Kf4 {[%clk 0:00:10.2]} 45...
Rc4+ {[%clk 0:00:16.9]} 46. Kf3 {[%clk 0:00:10.7]} 46... Kb5 {[%clk 0:00:14.5]}
47. Kg3 {[%clk 0:00:07.9]} 47... a4 {[%clk 0:00:13.3]} 48. Kh4 {[%clk
0:00:07.4]} 48... Kb4 {[%clk 0:00:12.9]} 49. Rg3 {[%clk 0:00:05.8]} 49... a3
{[%clk 0:00:10.9]} 50. Kh5 {[%clk 0:00:05.6]} 50... a2 {[%clk 0:00:06.9]} 51.
Rg1 {[%clk 0:00:05.7]} 51... Kb3 {[%clk 0:00:07]} 52. g5 {[%clk 0:00:03.9]}
52... fxg5 {[%clk 0:00:05.6]} 53. Kxg5 {[%clk 0:00:04.4]} 53... Rc2 {[%clk
0:00:03.5]} 54. Ra1 {[%clk 0:00:03.5]} 54... Kb2 {[%clk 0:00:03.5]} 55. Rxa2+
{[%clk 0:00:03.6]} 55... Kxa2 {[%clk 0:00:04.4]} 56. f6 {[%clk 0:00:04.3]} 56...
Kb3 {[%clk 0:00:04.6]} 57. Kg6 {[%clk 0:00:03.5]} 57... Rg2+ {[%clk 0:00:04.6]}
58. Kh7 {[%clk 0:00:02.8]} 58... Rf2 {[%clk 0:00:03.3]} 59. Kg7 {[%clk
0:00:02.1]} 59... Kc4 {[%clk 0:00:04.2]} 60. f7 {[%clk 0:00:02.6]} 60... Rg2+
{[%clk 0:00:04.9]} 61. Kh8 {[%clk 0:00:02.5]} 61... Rh2+ {[%clk 0:00:05.4]} 62.
Kg7 {[%clk 0:00:02.8]} 62... Rg2+ {[%clk 0:00:06.3]} 63. Kh8 {[%clk 0:00:03.4]}
63... Rh2+ {[%clk 0:00:06.6]} 64. Kg8 {[%clk 0:00:03.9]} 64... Rf2 {[%clk
0:00:06.5]} 65. Kg7 {[%clk 0:00:04.1]} 65... Rg2+ {[%clk 0:00:06.4]} 1/2-1/2

[Event "*** SCC Grand Prix: Titled Tuesday Blitz"]
[Site "Chess.com"]
[Date "2020.06.09"]
[Round "6"]
[White "Funo09"]
[Black "BlackBoarder"]
[Result "1/2-1/2"]
[WhiteElo "2809"]
[BlackElo "2655"]
[TimeControl "180+1"]
[EndTime "10:08:11 PDT"]
[Termination "Game drawn - insufficient material"]

1. e4 {[%clk 0:03:00.9]} 1... e6 {[%clk 0:02:59.8]} 2. Nc3 {[%clk 0:03:01.2]}
2... d5 {[%clk 0:02:59.4]} 3. d4 {[%clk 0:03:01.8]} 3... Bb4 {[%clk 0:02:59.1]}
4. e5 {[%clk 0:03:00.5]} 4... Ne7 {[%clk 0:02:59.1]} 5. Qg4 {[%clk 0:02:57.3]}
5... c5 {[%clk 0:02:58.8]} 6. a3 {[%clk 0:02:56.4]} 6... Qa5 {[%clk 0:02:58.4]}
7. Bd2 {[%clk 0:02:52.1]} 7... cxd4 {[%clk 0:02:56.1]} 8. Qxd4 {[%clk
0:02:48.4]} 8... Nbc6 {[%clk 0:02:56.2]} 9. Qf4 {[%clk 0:02:32]} 9... d4 {[%clk
0:02:55.6]} 10. Ne4 {[%clk 0:02:27.4]} 10... Bxd2+ {[%clk 0:02:55.3]} 11. Nxd2
{[%clk 0:02:27.5]} 11... Qxe5+ {[%clk 0:02:54.4]} 12. Qxe5 {[%clk 0:02:27.7]}
12... Nxe5 {[%clk 0:02:54.9]} 13. Ngf3 {[%clk 0:02:27.3]} 13... N5c6 {[%clk
0:02:35.5]} 14. Bb5 {[%clk 0:02:17.6]} 14... O-O {[%clk 0:02:29.8]} 15. O-O
{[%clk 0:02:15.7]} 15... e5 {[%clk 0:02:24.3]} 16. Rfe1 {[%clk 0:02:15]} 16...
f6 {[%clk 0:02:22.5]} 17. Ne4 {[%clk 0:02:13.5]} 17... Be6 {[%clk 0:01:51.4]}
18. Nc5 {[%clk 0:02:08]} 18... Bd5 {[%clk 0:01:51.2]} 19. Nd2 {[%clk 0:02:05.3]}
19... b6 {[%clk 0:01:47.7]} 20. Nce4 {[%clk 0:02:05.4]} 20... Rfd8 {[%clk
0:01:44.4]} 21. Rad1 {[%clk 0:02:04.9]} 21... Kf7 {[%clk 0:01:38]} 22. f4 {[%clk
0:02:04.6]} 22... Rac8 {[%clk 0:01:17.5]} 23. Nc4 {[%clk 0:01:54.8]} 23... Bxc4
{[%clk 0:01:03.3]} 24. Bxc4+ {[%clk 0:01:54.1]} 24... Kg6 {[%clk 0:01:03.6]} 25.
g4 {[%clk 0:01:45.3]} 25... exf4 {[%clk 0:01:01.3]} 26. Be6 {[%clk 0:01:35.3]}
26... Rc7 {[%clk 0:00:57.4]} 27. h4 {[%clk 0:01:32.6]} 27... h5 {[%clk
0:00:47.1]} 28. g5 {[%clk 0:01:26.2]} 28... Ne5 {[%clk 0:00:38.1]} 29. Re2
{[%clk 0:01:26.6]} 29... Nf3+ {[%clk 0:00:29.5]} 30. Kh1 {[%clk 0:01:24.2]}
30... Nxh4 {[%clk 0:00:24.3]} 31. gxf6 {[%clk 0:01:24.4]} 31... gxf6 {[%clk
0:00:23.6]} 32. Rg1+ {[%clk 0:01:24.8]} 32... Kh6 {[%clk 0:00:23]} 33. Nxf6
{[%clk 0:01:24.1]} 33... Rf8 {[%clk 0:00:19.9]} 34. Nd7 {[%clk 0:01:17]} 34...
Rd8 {[%clk 0:00:12.4]} 35. Ne5 {[%clk 0:01:15]} 35... Rf8 {[%clk 0:00:10.6]} 36.
Nf7+ {[%clk 0:01:07.7]} 36... Kh7 {[%clk 0:00:10.6]} 37. Rh2 {[%clk 0:01:04.5]}
37... Neg6 {[%clk 0:00:09.7]} 38. Ne5 {[%clk 0:00:59.3]} 38... Rf6 {[%clk
0:00:03.9]} 39. Nxg6 {[%clk 0:00:54.3]} 39... Rxg6 {[%clk 0:00:04.2]} 40. Bd5
{[%clk 0:00:45.4]} 40... Rxg1+ {[%clk 0:00:04]} 41. Kxg1 {[%clk 0:00:46.3]}
41... Rg7+ {[%clk 0:00:02.6]} 42. Kf1 {[%clk 0:00:46.2]} 42... Nf5 {[%clk
0:00:01.6]} 43. Rxh5+ {[%clk 0:00:44.2]} 43... Kg6 {[%clk 0:00:01.9]} 44. Bf3
{[%clk 0:00:43]} 44... Ne3+ {[%clk 0:00:01.8]} 45. Kf2 {[%clk 0:00:42.9]} 45...
Kf6 {[%clk 0:00:02.2]} 46. Rh4 {[%clk 0:00:39.1]} 46... Ke5 {[%clk 0:00:01.3]}
47. Rh5+ {[%clk 0:00:39.5]} 47... Kf6 {[%clk 0:00:01.8]} 48. c3 {[%clk
0:00:38.3]} 48... dxc3 {[%clk 0:00:01.7]} 49. bxc3 {[%clk 0:00:38.3]} 49... Ng4+
{[%clk 0:00:02.4]} 50. Ke2 {[%clk 0:00:38.1]} 50... Ne5 {[%clk 0:00:02.7]} 51.
Be4 {[%clk 0:00:37.2]} 51... Rg3 {[%clk 0:00:03]} 52. Rf5+ {[%clk 0:00:37.2]}
52... Ke6 {[%clk 0:00:03.1]} 53. Rxf4 {[%clk 0:00:36.9]} 53... Rxc3 {[%clk
0:00:03.7]} 54. a4 {[%clk 0:00:36.3]} 54... Rc4 {[%clk 0:00:03.3]} 55. Ke3
{[%clk 0:00:33.8]} 55... Kd6 {[%clk 0:00:03.3]} 56. Rf6+ {[%clk 0:00:31.3]}
56... Ke7 {[%clk 0:00:03.6]} 57. Rf5 {[%clk 0:00:30.8]} 57... Kd6 {[%clk
0:00:03.6]} 58. a5 {[%clk 0:00:27.2]} 58... bxa5 {[%clk 0:00:03.4]} 59. Rf6+
{[%clk 0:00:26.6]} 59... Ke7 {[%clk 0:00:03.8]} 60. Ra6 {[%clk 0:00:26.8]} 60...
Rc7 {[%clk 0:00:04.1]} 61. Bd5 {[%clk 0:00:26.2]} 61... Nc4+ {[%clk 0:00:03.7]}
62. Kd4 {[%clk 0:00:25.5]} 62... Nb6 {[%clk 0:00:03.6]} 63. Bb3 {[%clk
0:00:24.4]} 63... Rd7+ {[%clk 0:00:03.9]} 64. Kc5 {[%clk 0:00:24.1]} 64... Rc7+
{[%clk 0:00:04.1]} 65. Kb5 {[%clk 0:00:23.9]} 65... a4 {[%clk 0:00:03.6]} 66.
Bxa4 {[%clk 0:00:22.2]} 66... Nxa4 {[%clk 0:00:03.3]} 67. Rxa4 {[%clk
0:00:23.1]} 67... Kd6 {[%clk 0:00:03.4]} 68. Rd4+ {[%clk 0:00:23.6]} 68... Ke5
{[%clk 0:00:03.4]} 69. Rd3 {[%clk 0:00:24]} 69... Rb7+ {[%clk 0:00:03.6]} 70.
Ka6 {[%clk 0:00:23.8]} 70... Re7 {[%clk 0:00:03.9]} 71. Re3+ {[%clk 0:00:23.5]}
71... Kf6 {[%clk 0:00:04.3]} 72. Rxe7 {[%clk 0:00:24.4]} 72... Kxe7 {[%clk
0:00:05.2]} 73. Kxa7 {[%clk 0:00:25.3]} 1/2-1/2